bitfinex/quotes_SOLUSD_20230903
["timestamp","ask_amount","ask_price","bid_price","bid_amount"]
[1693782837448,26.35,19.53,19.515,111.99998011]
[1693782844639,92.1523,19.534,19.515,111.99998011]
[1693782844847,1.0,19.533,19.52,26.35]
[1693782845049,1.0,19.534,19.52,26.35]
[1693782846659,27.75197855,19.534,19.52,26.35]
[1693782847052,27.75197855,19.534,19.521,55.0]
[1693782849753,1.0,19.534,19.521,55.0]
[1693782852757,15.24743851,19.536,19.521,55.0]
[1693782852955,1.0,19.535,19.521,55.0]
[1693782853872,1.0,19.535,19.522,11.84946]
[1693782854167,1.0,19.535,19.523,55.0]
[1693782856357,1.0,19.537,19.523,55.0]
[1693782856763,1.0,19.543,19.523,55.0]
[1693782857065,1.0,19.543,19.524,11.84825]
[1693782857263,1.0,19.543,19.525,55.0]
[1693782859164,26.35,19.54,19.525,55.0]
[1693782865878,7.981,19.546,19.525,55.0]
[1693782866171,8.981,19.545,19.525,66.84764]
[1693782866360,26.35,19.54,19.525,66.84764]
[1693782868574,0.83814086,19.545,19.525,66.84764]
[1693782868790,0.83814086,19.545,19.53,26.35]
[1693782868967,0.83814086,19.545,19.531,55.0]
[1693782869880,0.83814086,19.545,19.531,108.99948]
[1693782870380,1.0,19.546,19.531,108.99948]
[1693782886589,26.35,19.55,19.532,31.8434]
[1693782886888,41.5882172,19.55,19.533,55.0]
[1693782887070,0.80740257,19.549,19.533,55.0]
[1693782893085,26.35,19.55,19.533,55.0]
[1693782893290,25.35,19.55,19.534,11.84218]
[1693782893496,25.35,19.55,19.535,55.0]
[1693782893903,25.35,19.55,19.535,66.84158]
[1693782894094,0.64092201,19.549,19.535,66.84158]
[1693782894294,25.35,19.55,19.535,66.84158]
[1693782897909,0.5723947,19.549,19.535,66.84158]
[1693782898112,25.35,19.55,19.535,66.84158]
[1693782898696,0.50301538,19.549,19.535,66.84158]
[1693782898901,25.35,19.55,19.535,66.84158]
[1693782899315,0.53054668,19.549,19.535,66.84158]
[1693782900816,25.35,19.55,19.535,66.84158]
[1693782902215,1.0,19.549,19.535,66.84158]
[1693782908618,1.0,19.549,19.535,11.84158]
[1693782909920,1.0,19.549,19.536,55.0]
[1693782921920,25.35,19.55,19.536,55.0]
[1693782922116,0.49799551,19.549,19.536,55.0]
[1693782922623,25.35,19.55,19.536,55.0]
[1693782925533,55.0,19.549,19.535,11.84158]
[1693782925736,55.0,19.549,19.533,61.2579]
[1693782925935,55.0,19.549,19.534,55.0]
[1693782926434,55.0,19.549,19.533,55.0]
[1693782927635,0.69408064,19.548,19.533,55.0]
[1693782927834,55.0,19.549,19.533,55.0]
[1693782928337,1.0,19.548,19.533,55.0]
[1693782928929,1.0,19.548,19.531,53.99948]
[1693782928930,56.0,19.548,19.531,53.99948]
[1693782929134,56.0,19.548,19.532,20.0]
[1693782929520,55.0,19.549,19.532,20.0]
[1693782929725,0.95742005,19.548,19.532,20.0]
[1693782939656,0.95742005,19.548,19.533,55.0]
[1693782941956,0.95742005,19.548,19.532,20.0]
[1693782942456,0.95742005,19.548,19.533,55.0]
[1693782955972,15.51612902,19.549,19.533,55.0]
[1693782958467,0.59317409,19.548,19.533,55.0]
[1693782968165,15.51612902,19.549,19.533,55.0]
[1693782969455,25.35,19.55,19.533,55.0]
[1693782970169,25.35,19.55,19.533,66.84279]
[1693782982569,0.62814629,19.549,19.533,66.84279]
[1693782982973,25.35,19.55,19.533,66.84279]
[1693782986178,0.53169574,19.549,19.533,66.84279]
[1693782986576,25.35,19.55,19.533,66.84279]
[1693782988883,0.6797429,19.549,19.533,66.84279]
[1693782989084,25.35,19.55,19.533,66.84279]
[1693782990378,0.66227156,19.549,19.533,66.84279]
[1693782991082,25.35,19.55,19.533,66.84279]
[1693782991284,0.50141002,19.549,19.533,66.84279]
[1693782991579,25.35,19.55,19.533,66.84279]
[1693782992177,0.97812814,19.549,19.533,66.84279]
[1693783007791,25.35,19.55,19.533,66.84279]
[1693783007998,0.55139889,19.549,19.533,66.84279]
[1693783011490,25.35,19.55,19.533,66.84279]
[1693783011996,0.62652698,19.549,19.533,66.84279]
[1693783012298,0.52647218,19.549,19.533,66.84279]
[1693783012900,25.35,19.55,19.533,66.84279]
[1693783017795,0.97150706,19.549,19.533,66.84279]
[1693783022004,25.35,19.55,19.533,66.84279]
[1693783022400,55.0,19.549,19.533,11.84279]
[1693783022602,62.98,19.549,19.533,11.84279]
[1693783022802,26.35,19.54,19.533,11.84279]
[1693783023707,26.35,19.54,19.522,0.99999011]
[1693783023893,0.99276703,19.539,19.522,32.84945011]
[1693783024090,26.35,19.54,19.522,32.84945011]
[1693783024289,26.35,19.54,19.524,0.99999011]
[1693783030708,26.35,19.54,19.524,55.99999011]
[1693783031010,26.35,19.54,19.526,0.99999011]
[1693783033594,15.01228878,19.544,19.527,25.61479988]
[1693783033800,1.0,19.543,19.528,55.99999011]
[1693783040112,1.0,19.543,19.53,26.35]
[1693783040317,16.57296466,19.546,19.531,55.0]
[1693783040617,1.0,19.546,19.531,55.0]
[1693783041500,1.0,19.546,19.531,110.0]
[1693783041919,56.0,19.546,19.531,110.0]
[1693783046623,63.981,19.546,19.531,55.0]
[1693783060732,104.70194213,19.546,19.531,55.0]
[1693783064834,96.72094213,19.546,19.531,55.0]
[1693783083749,104.70194213,19.546,19.53,55.0]
[1693783083936,26.35,19.54,19.53,55.0]
[1693783084142,26.35,19.54,19.525,0.99999011]
[1693783084551,53.99947988,19.545,19.525,26.61478999]
[1693783084857,56.0,19.544,19.526,25.61479988]
[1693783085042,56.0,19.544,19.527,0.99999011]
[1693783085439,56.0,19.544,19.527,55.99999011]
[1693783086453,55.0,19.543,19.527,55.99999011]
[1693783086651,1.0,19.542,19.527,81.61478999]
[1693783086844,1.0,19.544,19.528,25.61479988]
[1693783087040,1.0,19.545,19.53,26.35]
[1693783087241,105.88910214,19.547,19.531,20.0]
[1693783087242,1.0,19.546,19.531,20.0]
[1693783087553,90.4805,19.547,19.532,55.0]
[1693783087856,90.4805,19.547,19.533,25.61479988]
[1693783088237,90.4805,19.547,19.534,55.0]
[1693783088857,42.04892472,19.55,19.534,55.0]
[1693783089054,0.64643911,19.549,19.534,80.61479988]
[1693783089258,57.24935994,19.552,19.535,37.45637988]
[1693783089456,1.0,19.551,19.536,55.0]
[1693783090148,15.37327188,19.552,19.536,66.84097]
[1693783090347,0.60747777,19.551,19.536,66.84097]
[1693783098356,0.60747777,19.551,19.537,11.84036]
[1693783098559,0.60747777,19.551,19.538,55.0]
[1693783098760,15.37327188,19.552,19.538,55.0]
[1693783099272,0.49952889,19.551,19.538,55.0]
[1693783100273,0.49952889,19.551,19.538,66.83976]
[1693783101372,1.0,19.554,19.54,26.35]
[1693783101566,1.0,19.554,19.541,55.0]
[1693783103176,1.0,19.554,19.541,110.0]
[1693783123094,1.0,19.554,19.541,121.83794]
[1693783123289,1.0,19.554,19.542,11.83734]
[1693783123489,1.0,19.558,19.543,55.0]
[1693783123684,1.0,19.558,19.543,66.83673]
[1693783123884,80.34947988,19.56,19.543,66.83673]
[1693783123885,1.0,19.559,19.543,66.83673]
[1693783124098,16.30721965,19.559,19.543,66.83673]
[1693783126588,16.30721965,19.559,19.544,11.83612]
[1693783126785,16.30721965,19.559,19.545,55.0]
[1693783142320,16.30721965,19.559,19.544,11.83612]
[1693783142508,55.0,19.558,19.541,55.0]
[1693783142817,1.0,19.557,19.542,55.0]
[1693783143606,1.0,19.558,19.542,55.0]
[1693783143822,56.0,19.558,19.542,55.0]
[1693783150312,1.0,19.558,19.542,55.0]
[1693783150809,56.0,19.558,19.542,55.0]
[1693783156026,1.0,19.558,19.542,55.0]
[1693783156522,56.0,19.558,19.542,55.0]
[1693783157628,1.0,19.558,19.542,55.0]
[1693783160209,1.0,19.558,19.542,66.83734]
[1693783163431,1.0,19.558,19.543,11.83673]
[1693783163640,1.0,19.558,19.544,55.0]
[1693783166116,1.0,19.558,19.544,66.83612]
[1693783177739,1.0,19.558,19.545,11.83552]
[1693783177939,1.0,19.558,19.546,55.0]
[1693783178140,1.0,19.558,19.546,66.83491]
[1693783180645,1.0,19.559,19.546,66.83491]
[1693783182040,1.0,19.559,19.546,11.83491]
[1693783182236,24.7797335,19.559,19.546,11.83491]
[1693783183548,24.7797335,19.559,19.547,55.0]
[1693783184538,24.7797335,19.559,19.547,110.0]
[1693783188746,1.0,19.559,19.547,110.0]
[1693783191254,1.0,19.559,19.547,55.0]
[1693783191553,56.0,19.559,19.54,26.35]
[1693783191756,56.0,19.559,19.541,55.0]
[1693783192644,56.0,19.559,19.541,110.0]
[1693783192843,63.976,19.559,19.541,110.0]
[1693783193053,87.7557335,19.559,19.541,110.0]
[1693783193251,109.54854284,19.559,19.541,110.0]
[1693783193449,131.34135218,19.559,19.541,110.0]
[1693783193661,123.36535218,19.559,19.541,110.0]
[1693783194659,131.34035218,19.559,19.541,110.0]
[1693783194858,26.35,19.55,19.541,55.0]
[1693783195055,26.35,19.55,19.522,61.05789011]
[1693783195056,34.329,19.55,19.522,61.05789011]
[1693783195256,56.0,19.549,19.529,58.99093789]
[1693783195557,56.0,19.549,19.53,37.45940988]
[1693783195748,1.0,19.549,19.531,11.844]
[1693783196456,1.0,19.549,19.532,55.0]
[1693783199365,56.0,19.549,19.532,55.0]
[1693783199549,55.0,19.549,19.532,55.0]
[1693783199862,1.0,19.548,19.532,55.0]
[1693783200064,1.0,19.548,19.532,81.727991]
[1693783200963,1.0,19.548,19.532,26.727991]
[1693783201854,1.0,19.549,19.532,26.727991]
[1693783202168,96.20880244,19.549,19.532,26.727991]
[1693783202346,56.0,19.549,19.533,55.0]
[1693783206565,56.0,19.549,19.532,26.727991]
[1693783206762,63.98,19.549,19.532,26.727991]
[1693783207081,26.35,19.54,19.532,26.727991]
[1693783207664,1.0,19.548,19.532,26.727991]
[1693783210573,1.0,19.548,19.533,55.0]
[1693783228064,1.0,19.548,19.532,26.727991]
[1693783228377,1.0,19.548,19.533,55.0]
[1693783234568,1.0,19.549,19.533,80.61479988]
[1693783234767,1.0,19.549,19.534,25.61479988]
[1693783234970,41.46361309,19.55,19.535,55.0]
[1693783235174,41.46361309,19.55,19.535,80.61479988]
[1693783238668,41.46361309,19.55,19.535,92.45637988]
[1693783242364,26.35,19.55,19.535,92.45637988]
[1693783242770,26.35,19.55,19.536,25.61479988]
[1693783242973,26.35,19.55,19.537,55.0]
[1693783244371,26.35,19.55,19.537,66.84036]
[1693783247683,26.35,19.55,19.538,11.83976]
[1693783247884,26.35,19.55,19.539,55.0]
[1693783248869,26.35,19.55,19.539,110.0]
[1693783259188,26.35,19.55,19.539,55.0]
[1693783260399,26.35,19.55,19.54,55.0]
[1693783260695,26.35,19.55,19.538,11.83976]
[1693783261292,0.97139033,19.549,19.533,58.99093789]
[1693783261495,0.97139033,19.549,19.533,11.84279]
[1693783261801,0.97139033,19.549,19.533,38.19279]
[1693783262299,26.35,19.55,19.533,38.19279]
[1693783262499,0.71577112,19.549,19.534,55.0]
[1693783262701,26.35,19.55,19.534,55.0]
[1693783264600,26.35,19.55,19.534,66.84218]
[1693783267990,26.35,19.55,19.535,11.84158]
[1693783268191,26.35,19.55,19.536,55.0]
[1693783268397,26.35,19.55,19.536,66.84097]
[1693783279519,26.35,19.55,19.537,11.84036]
[1693783279722,26.35,19.55,19.538,55.0]
[1693783281311,26.35,19.55,19.538,66.83976]
[1693783345065,119.1057,19.56,19.538,66.83976]
[1693783345271,1.0,19.559,19.54,26.35]
[1693783345455,1.0,19.559,19.541,80.61479988]
[1693783346163,1.0,19.559,19.541,165.95523888]
[1693783358175,1.0,19.559,19.541,177.79317888]
[1693783361090,1.0,19.559,19.542,11.83734]
[1693783361291,1.0,19.559,19.543,55.0]
[1693783369873,56.0,19.559,19.543,55.0]
[1693783397615,26.35,19.55,19.542,11.83734]
[1693783398000,26.35,19.55,19.535,58.990439]
[1693783398205,26.35,19.55,19.537,85.340439]
[1693783399219,26.35,19.55,19.538,55.0]
[1693783399908,26.35,19.55,19.538,66.83976]
[1693783400315,1.0,19.558,19.539,20.0]
[1693783400509,1.0,19.558,19.54,55.0]
[1693783413737,1.0,19.559,19.54,66.83855]
[1693783414625,1.0,19.559,19.541,11.83794]
[1693783414933,1.0,19.559,19.542,55.0]
[1693783444245,1.0,19.559,19.542,66.83734]
[1693783453469,81.81622311,19.56,19.542,66.83734]
[1693783453766,81.81622311,19.56,19.543,1.99999011]
[1693783455351,81.81622311,19.56,19.543,68.83733011]
[1693783455551,81.81622311,19.56,19.544,55.0]
[1693783455852,81.81622311,19.56,19.545,1.99999011]
[1693783460069,41.75071647,19.56,19.545,1.99999011]
[1693783460372,26.35,19.56,19.546,11.83491]
[1693783460669,26.35,19.56,19.547,56.99999011]
[1693783468371,26.35,19.56,19.547,68.83430011]
[1693783484990,26.35,19.56,19.547,13.83430011]
[1693783485183,26.35,19.56,19.544,1.99999011]
[1693783486089,121.0931,19.56,19.544,1.99999011]
[1693783486589,121.0931,19.56,19.544,56.99999011]
[1693783498797,161.20773663,19.56,19.544,56.99999011]
[1693783511105,55.0,19.559,19.544,56.99999011]
[1693783523314,106.18,19.559,19.544,56.99999011]
[1693783537127,106.18,19.559,19.544,1.99999011]
[1693783537509,106.18,19.559,19.544,56.99999011]
[1693783570946,106.18,19.559,19.544,1.99999011]
[1693783571453,106.18,19.559,19.538,21.99999011]
[1693783571655,106.18,19.559,19.542,66.83734]
[1693783571948,106.18,19.559,19.543,56.99999011]
[1693783573152,132.89476075,19.559,19.543,56.99999011]
[1693783575954,106.18,19.559,19.543,56.99999011]
[1693783586661,132.8937408,19.559,19.543,56.99999011]
[1693783586860,26.35,19.55,19.543,1.99999011]
[1693783587247,26.35,19.55,19.539,1.99999011]
[1693783587664,26.35,19.55,19.541,58.990439]
[1693783587962,26.35,19.55,19.542,1.99999011]
[1693783618484,26.35,19.55,19.542,56.99999011]
[1693783619791,92.7898,19.553,19.542,56.99999011]
[1693783620600,15.5202046,19.554,19.542,56.99999011]
[1693783629198,199.7296,19.559,19.542,56.99999011]
[1693783631307,144.7296,19.559,19.542,56.99999011]
[1693783634509,93.5496,19.559,19.542,56.99999011]
[1693783634712,144.7296,19.559,19.542,56.99999011]
[1693783641414,144.7296,19.559,19.543,25.61479988]
[1693783641611,144.7296,19.559,19.544,56.99999011]
[1693783642004,93.5496,19.559,19.545,11.83552]
[1693783642299,93.5496,19.559,19.546,56.99999011]
[1693783642512,93.5496,19.559,19.546,94.44969999]
[1693783643119,26.35,19.56,19.546,94.44969999]
[1693783661527,26.35,19.56,19.547,25.61479988]
[1693783661722,26.35,19.56,19.548,56.99999011]
[1693783678053,24.35,19.56,19.548,56.99999011]
[1693783693681,24.35,19.56,19.548,68.83369011]
[1693783716397,24.35,19.56,19.549,11.8331]
[1693783716694,24.35,19.56,19.55,58.99999011]
[1693783757941,24.35,19.56,19.55,3.99999011]
[1693783759537,24.35,19.56,19.548,3.99999011]
[1693783760646,24.35,19.56,19.548,58.99999011]
[1693783780258,24.35,19.56,19.548,3.99999011]
[1693783781456,24.35,19.56,19.548,58.99999011]
[1693783784263,15.5892583,19.563,19.549,20.0]
[1693783784567,15.5892583,19.563,19.55,58.99999011]
[1693783784956,94.1353,19.565,19.55,58.99999011]
[1693783785765,26.35,19.57,19.55,58.99999011]
[1693783786066,154.6718,19.569,19.55,58.99999011]
[1693783789862,181.37536055,19.569,19.55,58.99999011]
[1693783792852,154.6718,19.569,19.55,58.99999011]
[1693783803469,181.37553584,19.569,19.55,58.99999011]
[1693783805359,126.37553584,19.569,19.55,110.96478999]
[1693783805669,99.6718,19.569,19.551,25.61479988]
[1693783805970,99.6718,19.569,19.552,58.99999011]
[1693783806171,99.6718,19.569,19.552,84.61478999]
[1693783809565,99.6718,19.569,19.552,58.99999011]
[1693783817074,99.6718,19.569,19.552,3.99999011]
[1693783817264,55.0,19.568,19.551,3.99999011]
[1693783817665,55.0,19.568,19.549,23.99999011]
[1693783818363,55.0,19.568,19.55,55.0]
[1693783818567,55.0,19.568,19.551,3.99999011]
[1693783833088,55.0,19.568,19.55,3.99999011]
[1693783834279,55.0,19.568,19.55,58.99999011]
[1693783846802,126.37306533,19.569,19.55,58.99999011]
[1693783847001,55.0,19.568,19.55,58.99999011]
[1693783848906,99.6718,19.569,19.55,58.99999011]
[1693783863320,99.6718,19.569,19.55,85.34999011]
[1693783870421,99.6718,19.569,19.55,97.18248011]
[1693783871223,99.6718,19.569,19.55,122.79727999]
[1693783874142,99.6718,19.569,19.552,3.99999011]
[1693783874327,99.6718,19.569,19.552,58.99999011]
[1693783880329,99.6718,19.569,19.552,84.61478999]
[1693783882230,99.6718,19.569,19.553,37.44547988]
[1693783882431,99.6718,19.569,19.554,58.99999011]
[1693783884818,99.6718,19.569,19.554,70.83006011]
[1693783887428,99.6718,19.569,19.554,96.44485999]
[1693783887628,99.6718,19.569,19.555,11.82947]
[1693783887935,99.6718,19.569,19.556,58.99999011]
[1693783888327,99.6718,19.569,19.556,70.82885011]
[1693783890133,26.35,19.57,19.556,70.82885011]
[1693783890340,26.35,19.57,19.557,20.0]
[1693783890538,26.35,19.57,19.558,58.99999011]
[1693783890734,26.35,19.57,19.559,20.0]
[1693783890930,26.35,19.57,19.56,58.99999011]
[1693783891128,26.35,19.57,19.56,55.0]
[1693783892137,26.35,19.57,19.56,110.0]
[1693783893330,428.09092652,19.595,19.561,45.61479988]
[1693783893534,92.9738,19.587,19.562,178.67733]
[1693783893738,92.9738,19.587,19.563,104.89199551]
[1693783893923,68.06370143,19.59,19.564,178.67733]
[1693783894131,68.06370143,19.59,19.565,104.89199551]
[1693783894132,92.9738,19.589,19.565,104.89199551]
[1693783894438,92.9738,19.589,19.566,178.67733]
[1693783894640,92.9738,19.589,19.567,84.89199551]
[1693783894829,83.69100204,19.59,19.568,153.26588825]
[1693783895146,83.69100204,19.59,19.569,25.61479988]
[1693783895328,83.69100204,19.59,19.57,133.26588825]
[1693783895638,83.69100204,19.59,19.57,128.32127789]
[1693783896434,55.0,19.589,19.57,128.32127789]
[1693783898534,83.69100204,19.59,19.571,25.61479988]
[1693783898841,83.69100204,19.59,19.572,129.69350011]
[1693783899041,83.69100204,19.59,19.573,25.61479988]
[1693783899233,83.69100204,19.59,19.574,55.0]
[1693783915059,26.35,19.6,19.575,11.81738]
[1693783915240,92.4071,19.597,19.58,26.35]
[1693783915449,92.4071,19.597,19.581,129.69350011]
[1693783915656,26.35,19.6,19.581,155.30829999]
[1693783915963,92.4071,19.599,19.581,155.30829999]
[1693783916158,92.4071,19.599,19.581,310.61659999]
[1693783916361,41.78229432,19.6,19.581,310.61659999]
[1693783918057,55.0,19.599,19.581,310.61659999]
[1693783919669,83.05706448,19.6,19.581,310.61659999]
[1693783919960,41.78229432,19.6,19.581,310.61659999]
[1693783920354,92.96229432,19.6,19.581,155.3083]
[1693783920667,41.78229432,19.6,19.575,116.50601738]
[1693783920867,51.18,19.599,19.576,45.61479988]
[1693783921251,55.0,19.598,19.576,162.12081788]
[1693783921550,153.3306,19.598,19.576,162.12081788]
[1693783921942,153.3306,19.598,19.577,55.0]
[1693783922162,153.3306,19.598,19.577,80.61479988]
[1693783922460,153.3306,19.598,19.578,20.0]
[1693783922651,153.3306,19.598,19.579,55.0]
[1693783931374,153.3306,19.598,19.576,116.506018]
[1693783931375,26.35,19.59,19.576,116.506018]
[1693783931553,26.35,19.59,19.575,11.81738]
[1693783931959,26.35,19.59,19.569,4.92138649]
[1693783932160,26.35,19.59,19.575,91.2916]
[1693783933172,26.35,19.59,19.576,55.0]
[1693783944476,26.35,19.59,19.575,55.0]
[1693783947172,42.03523249,19.59,19.575,55.0]
[1693783947389,83.75214612,19.59,19.575,55.0]
[1693783961371,42.03523249,19.59,19.575,55.0]
[1693783961574,26.35,19.59,19.576,25.61479988]
[1693783961784,139.84643247,19.598,19.577,75.0]
[1693783962088,139.84643247,19.598,19.578,25.61479988]
[1693783962274,139.84643247,19.598,19.579,75.0]
[1693783962476,139.84643247,19.598,19.579,100.61479988]
[1693783963885,55.0,19.597,19.579,100.61479988]
[1693783964288,55.0,19.597,19.58,26.35]
[1693783964474,55.0,19.597,19.581,55.0]
[1693783965183,55.0,19.597,19.581,110.0]
[1693783977694,139.84643247,19.598,19.581,110.0]
[1693783982496,98.3306,19.598,19.582,25.61479988]
[1693783982697,98.3306,19.598,19.583,55.0]
[1693783982889,41.78229432,19.6,19.583,80.61479988]
[1693783987190,41.78229432,19.6,19.583,55.0]
[1693783987397,41.78229432,19.6,19.584,25.61479988]
[1693783987707,41.78229432,19.6,19.585,55.0]
[1693783993616,41.78229432,19.6,19.581,170.66013533]
[1693783995022,41.78229432,19.6,19.582,55.0]
[1693784000922,41.78229432,19.6,19.582,80.61479988]
[1693784004627,41.78229432,19.6,19.583,25.61479988]
[1693784004821,41.78229432,19.6,19.584,55.0]
[1693784005127,41.78229432,19.6,19.584,80.61479988]
[1693784007321,41.78229432,19.6,19.585,25.61479988]
[1693784007518,41.78229432,19.6,19.586,55.0]
[1693784010831,41.78229432,19.6,19.586,80.61479988]
[1693784014527,26.35,19.6,19.586,80.61479988]
[1693784029241,26.35,19.6,19.586,92.42553988]
[1693784030342,15.08269525,19.602,19.586,92.42553988]
[1693784037746,51.18,19.609,19.59,26.35]
[1693784037947,15.60183767,19.609,19.591,92.42252988]
[1693784038147,15.60183767,19.609,19.592,11.80713]
[1693784038344,15.60183767,19.609,19.593,55.0]
[1693784038834,15.60183767,19.609,19.593,92.42131988]
[1693784039439,15.60183767,19.609,19.593,184.84263988]
[1693784039945,15.60183767,19.609,19.593,159.22784]
[1693784045155,15.60183767,19.609,19.593,104.22784]
[1693784046045,15.60183767,19.609,19.593,92.42132]
[1693784046447,15.60183767,19.609,19.594,55.0]
[1693784053363,15.60183767,19.609,19.593,92.42132]
[1693784053662,15.60183767,19.609,19.594,55.0]
[1693784054065,15.60183767,19.609,19.593,92.42132]
[1693784054276,55.0,19.608,19.589,25.61479988]
[1693784054463,55.0,19.608,19.59,55.0]
[1693784055352,151.2018,19.608,19.59,55.0]
[1693784055553,151.2018,19.608,19.59,114.277195]
[1693784101388,96.2018,19.608,19.591,25.61479988]
[1693784101592,15.60183767,19.609,19.591,25.61479988]
[1693784101593,15.60183767,19.609,19.592,55.0]
[1693784101790,15.60183767,19.609,19.592,92.42192988]
[1693784103591,15.60183767,19.609,19.592,66.80713]
[1693784103802,15.60183767,19.609,19.593,25.61479988]
[1693784104101,15.60183767,19.609,19.594,55.0]
[1693784104401,15.60183767,19.609,19.593,55.0]
[1693784105496,67.24070479,19.61,19.594,11.80592]
[1693784105694,67.24070479,19.61,19.595,55.0]
[1693784108110,26.35,19.61,19.594,11.80592]
[1693784108295,55.0,19.609,19.59,59.277195]
[1693784108806,41.9901225,19.61,19.59,59.277195]
[1693784109406,41.9901225,19.61,19.591,55.0]
[1693784115310,41.9901225,19.61,19.592,25.61479988]
[1693784115609,41.9901225,19.61,19.593,55.0]
[1693784121199,55.0,19.609,19.593,55.0]
[1693784121915,55.0,19.609,19.592,25.61479988]
[1693784122415,55.0,19.609,19.593,55.0]
[1693784124218,55.0,19.609,19.592,25.61479988]
[1693784124409,55.0,19.609,19.59,59.277195]
[1693784124611,55.0,19.609,19.591,55.0]
[1693784144039,141.4492225,19.61,19.591,55.0]
[1693784170062,102.74554967,19.618,19.591,55.0]
[1693784170063,26.35,19.62,19.592,59.27719563]
[1693784170261,26.35,19.62,19.6,26.35]
[1693784170590,41.95030627,19.62,19.601,55.0]
[1693784170765,82.75888206,19.62,19.601,55.0]
[1693784171268,82.75888206,19.62,19.601,121.04176307]
[1693784171772,82.75888206,19.62,19.601,215.70486307]
[1693784173066,82.75888206,19.62,19.601,241.31966295]
[1693784174064,82.75888206,19.62,19.601,215.70486307]
[1693784175367,55.0,19.619,19.601,215.70486307]
[1693784178767,53.5,19.619,19.602,1.49999011]
[1693784181567,82.75888206,19.62,19.602,1.49999011]
[1693784189570,26.35,19.62,19.602,93.15655306]
[1693784189871,26.35,19.62,19.604,1.49999011]
[1693784194472,26.35,19.63,19.61,26.35]
[1693784194667,26.35,19.63,19.612,2.49999011]
[1693784195487,97.7955,19.629,19.612,2.49999011]
[1693784210278,26.61797949,19.628,19.612,2.49999011]
[1693784212998,97.7955,19.629,19.612,2.49999011]
[1693784223497,26.61797949,19.628,19.612,2.49999011]
[1693784226602,97.7955,19.629,19.612,2.49999011]
[1693784252443,26.35,19.62,19.612,2.49999011]
[1693784252747,26.35,19.62,19.606,2.49999011]
[1693784252939,98.2548,19.619,19.607,40.432433]
[1693784253133,98.2548,19.619,19.608,2.49999011]
[1693784258147,98.2548,19.619,19.601,2.49999011]
[1693784258953,98.2548,19.619,19.601,28.84999011]
[1693784259548,98.2548,19.619,19.602,55.0]
[1693784259854,98.2548,19.619,19.603,2.49999011]
[1693784264151,138.25479999,19.619,19.603,2.49999011]
[1693784265949,55.0,19.618,19.602,2.49999011]
[1693784267160,55.0,19.618,19.602,57.49999011]
[1693784268859,55.0,19.618,19.602,2.49999011]
[1693784269163,26.35,19.61,19.602,2.49999011]
[1693784269455,26.35,19.61,19.591,2.49999011]
[1693784269663,26.35,19.61,19.591,82.48121125]
[1693784269954,99.0913,19.609,19.591,171.22714125]
[1693784270454,99.0913,19.609,19.593,2.49999011]
[1693784270768,26.35,19.61,19.593,56.86641137]
[1693784271060,99.0913,19.608,19.595,2.49999011]
[1693784277662,99.0913,19.608,19.594,2.49999011]
[1693784277866,99.0913,19.608,19.592,2.49999011]
[1693784279063,99.0913,19.608,19.592,57.49999011]
[1693784327640,99.0913,19.608,19.593,11.80652]
[1693784327945,99.0913,19.608,19.594,57.49999011]
[1693784337757,26.35,19.61,19.594,57.49999011]